Workbook

Sheet 1
A1: 45589 | B1: 2660586.764 | C1: 364325.44 | D1: 233.382
A2: 45590 | B2: 2660469.245 | C2: 364525.912 | D2: 233.382
A3: 45591 | B3: 2660626.717 | C3: 364702.289 | D3: 233.382
A4: 45592 | B4: 2660319.041 | C4: 363785.143 | D4: 233.383
A5: 45593 | B5: 2660232.814 | C5: 363543.011 | D5: 233.383
A6: 45594 | B6: 2660672.839 | C6: 364356.182 | D6: 233.383
A7: 45595 | B7: 2660409.906 | C7: 363100.744 | D7: 233.383
A8: 45596 | B8: 2660156.716 | C8: 363879.832 | D8: 233.383
A9: 45597 | B9: 2660486.303 | C9: 363773.804 | D9: 233.383
A10: 45598 | B10: 2660293.073 | C10: 364348.653 | D10: 233.383
A11: 45599 | B11: 2660355.972 | C11: 364296.394 | D11: 233.383
A12: 45600 | B12: 2660781.229 | C12: 364345.215 | D12: 233.383
A13: 45601 | B13: 2660437.513 | C13: 364567.129 | D13: 233.383
A14: 45602 | B14: 2660429.884 | C14: 364601.64 | D14: 233.383
A15: 45603 | B15: 2660810.395 | C15: 364307.651 | D15: 233.383
A16: 45604 | B16: 2660642.786 | C16: 364362.367 | D16: 233.384
A17: 45605 | B17: 2660291.425 | C17: 363794.627 | D17: 233.384
A18: 45606 | B18: 2660232.017 | C18: 363580.798 | D18: 233.384
A19: 45607 | B19: 2660392.968 | C19: 363066.546 | D19: 233.384
A20: 45608 | B20: 2660076.075 | C20: 363873.314 | D20: 233.384
A21: 45609 | B21: 2660503.494 | C21: 363574.704 | D21: 233.384
A22: 45610 | B22: 2660264.588 | C22: 363566.997 | D22: 233.384
A23: 45611 | B23: 2661020.174 | C23: 364587.842 | D23: 233.384
A24: 45612 | B24: 2660642.786 | C24: 364362.367 | D24: 233.384
A25: 45613 | B25: 2660502.555 | C25: 364443.336 | D25: 233.384
A26: 45614 | B26: 2660383.463 | C26: 364519.506 | D26: 233.384
A27: 45615 | B27: 2660362.912 | C27: 364284.345 | D27: 233.384
A28: 45616 | B28: 2660249.428 | C28: 364274.948 | D28: 233.384
A29: 45617 | B29: 2660775.984 | C29: 364289.489 | D29: 233.384
A30: 45618 | B30: 2660513.012 | C30: 364830.005 | D30: 233.384
A31: 45619 | B31: 2660392.623 | C31: 364599.406 | D31: 233.384
A32: 45620 | B32: 2660837.451 | C32: 364388.839 | D32: 233.384
A33: 45621 | B33: 2660400.536 | C33: 364620.162 | D33: 233.384
A34: 45622 | B34: 2660425.336 | C34: 364579.411 | D34: 233.384
A35: 45623 | B35: 2660486.225 | C35: 364467.292 | D35: 233.384
A36: 45624 | B36: 2660689.38 | C36: 364746.832 | D36: 233.384
A37: 45625 | B37: 2660495.051 | C37: 364727.938 | D37: 233.384
A38: 45626 | B38: 2660981.483 | C38: 364396.236 | D38: 233.384
A39: 45627 | B39: 2660786.656 | C39: 364295.179 | D39: 233.384
A40: 45628 | B40: 2660530.108 | C40: 363672.434 | D40: 233.385
A41: 45629 | B41: 2660164.169 | C41: 363735.812 | D41: 233.385
A42: 45630 | B42: 2660249.113 | C42: 363495.305 | D42: 233.385
A43: 45631 | B43: 2660607.377 | C43: 363784.05 | D43: 233.385
A44: 45632 | B44: 2660635.311 | C44: 363656.011 | D44: 233.385
A45: 45633 | B45: 2660359.852 | C45: 363777.066 | D45: 233.385
A46: 45634 | B46: 2660246.008 | C46: 363939.146 | D46: 233.385
A47: 45635 | B47: 2660305.686 | C47: 364298.329 | D47: 233.385
A48: 45636 | B48: 2660296.9 | C48: 364314.819 | D48: 233.385
A49: 45637 | B49: 2660915.822 | C49: 364501.053 | D49: 233.385
A50: 45638 | B50: 2660330.887 | C50: 364208.692 | D50: 233.385
A51: 45639 | B51: 2660637.563 | C51: 364039.406 | D51: 233.385
A52: 45640 | B52: 2660867.349 | C52: 364463.591 | D52: 233.385
A53: 45641 | B53: 2660548.221 | C53: 364452.565 | D53: 233.385
A54: 45642 | B54: 2660542.281 | C54: 364618.093 | D54: 233.385
A55: 45643 | B55: 2660718.58 | C55: 364702.721 | D55: 233.385
A56: 45644 | B56: 2660856.637 | C56: 364400.302 | D56: 233.385
A57: 45645 | B57: 2660617.33 | C57: 363761.697 | D57: 233.386
A58: 45646 | B58: 2660521.397 | C58: 363609.033 | D58: 233.386
A59: 45647 | B59: 2660163.69 | C59: 363736.893 | D59: 233.386
A60: 45648 | B60: 2660319.766 | C60: 363799.123 | D60: 233.386
A61: 45649 | B61: 2660179.544 | C61: 363605.764 | D61: 233.386
A62: 45650 | B62: 2660265.21 | C62: 363564.089 | D62: 233.386
A63: 45651 | B63: 2660648.815 | C63: 364352.853 | D63: 233.386
A64: 45652 | B64: 2660367.596 | C64: 363072.324 | D64: 233.386
A65: 45653 | B65: 2660451.267 | C65: 363772.984 | D65: 233.386
A66: 45654 | B66: 2660330.615 | C66: 364214.882 | D66: 233.386
A67: 45655 | B67: 2660248.695 | C67: 364282.175 | D67: 233.386
A68: 45656 | B68: 2660659.137 | C68: 364100.117 | D68: 233.386
A69: 45657 | B69: 2660690.014 | C69: 364266.161 | D69: 233.386
A70: 45658 | B70: 2660482.343 | C70: 364584.006 | D70: 233.386
A71: 45659 | B71: 2660407.814 | C71: 364598.139 | D71: 233.386
A72: 45660 | B72: 2660657.856 | C72: 364702.938 | D72: 233.386
A73: 45661 | B73: 2660587.452 | C73: 363704.305 | D73: 233.387
A74: 45662 | B74: 2660544.94 | C74: 363619.961 | D74: 233.387
A75: 45663 | B75: 2660332.996 | C75: 363643.583 | D75: 233.387
A76: 45664 | B76: 2660223.448 | C76: 363758.972 | D76: 233.387
A77: 45665 | B77: 2660224.003 | C77: 363777.905 | D77: 233.387
A78: 45666 | B78: 2660173.936 | C78: 363622.879 | D78: 233.387
A79: 45667 | B79: 2660183.146 | C79: 363446.579 | D79: 233.387
A80: 45668 | B80: 2660161.194 | C80: 363501.912 | D80: 233.387
A81: 45669 | B81: 2660075.253 | C81: 363546.405 | D81: 233.387
A82: 45670 | B82: 2660398.198 | C82: 363407.6 | D82: 233.387
A83: 45671 | B83: 2660332.568 | C83: 363716.496 | D83: 233.387
A84: 45672 | B84: 2660328.559 | C84: 364390.688 | D84: 233.387
A85: 45673 | B85: 2660357.536 | C85: 364297.791 | D85: 233.387
A86: 45674 | B86: 2660605.988 | C86: 364353.093 | D86: 233.387
A87: 45675 | B87: 2660282.036 | C87: 363983.858 | D87: 233.387
A88: 45676 | B88: 2660206.631 | C88: 364161.075 | D88: 233.387
A89: 45677 | B89: 2660467.056 | C89: 364486.394 | D89: 233.387
A90: 45678 | B90: 2660576.377 | C90: 364639.289 | D90: 233.387
A91: 45679 | B91: 2660538.531 | C91: 364681.985 | D91: 233.387
A92: 45680 | B92: 2660542.827 | C92: 364769.201 | D92: 233.387
A93: 45681 | B93: 2660790.119 | C93: 364296.008 | D93: 233.387
A94: 45682 | B94: 2660817.377 | C94: 364327.487 | D94: 233.387
A95: 45683 | B95: 2661001.095 | C95: 364562.911 | D95: 233.387
A96: 45684 | B96: 2660518.314 | C96: 363699.077 | D96: 233.388
A97: 45685 | B97: 2660257.791 | C97: 363891.938 | D97: 233.388
A98: 45686 | B98: 2660164.655 | C98: 363723.234 | D98: 233.388
A99: 45687 | B99: 2660398.158 | C99: 363408.211 | D99: 233.388
A100: 45688 | B100: 2660121.17 | C100: 363437.573 | D100: 233.388
A101: 45689 | B101: 2660374.613 | C101: 363660.128 | D101: 233.388
A102: 45690 | B102: 2660329.43 | C102: 364213.778 | D102: 233.388
A103: 45691 | B103: 2660191.04 | C103: 364075.134 | D103: 233.388
A104: 45692 | B104: 2660254.355 | C104: 364249.634 | D104: 233.388
A105: 45693 | B105: 2660604.645 | C105: 364403.386 | D105: 233.388
A106: 45694 | B106: 2660533.202 | C106: 364433.373 | D106: 233.388
A107: 45695 | B107: 2660525.396 | C107: 364658.115 | D107: 233.388
A108: 45696 | B108: 2660535.207 | C108: 364728.785 | D108: 233.388
A109: 45697 | B109: 2660904.382 | C109: 364327.992 | D109: 233.388
A110: 45698 | B110: 2660332.491 | C110: 363498.538 | D110: 233.389
A111: 45699 | B111: 2660256.17 | C111: 363471.986 | D111: 233.389
A112: 45700 | B112: 2660223.518 | C112: 364182.452 | D112: 233.389
A113: 45701 | B113: 2660483.82 | C113: 364583.844 | D113: 233.389
A114: 45702 | B114: 2660221.936 | C114: 363865.656 | D114: 233.39
A115: 45703 | B115: 2660238.272 | C115: 363854.407 | D115: 233.39
A116: 45704 | B116: 2660302.948 | C116: 363822.972 | D116: 233.39
A117: 45705 | B117: 2660409.614 | C117: 363426.062 | D117: 233.39
A118: 45706 | B118: 2660179.376 | C118: 363577.77 | D118: 233.39
A119: 45707 | B119: 2660681.626 | C119: 364306.718 | D119: 233.39
A120: 45708 | B120: 2660328.392 | C120: 363111.085 | D120: 233.39
A121: 45709 | B121: 2660283.322 | C121: 364201.432 | D121: 233.39
A122: 45710 | B122: 2660353.68 | C122: 364292.396 | D122: 233.39
A123: 45711 | B123: 2660173.451 | C123: 364036.194 | D123: 233.39
A124: 45712 | B124: 2660404.343 | C124: 364457.019 | D124: 233.39
A125: 45713 | B125: 2660233.145 | C125: 364256.161 | D125: 233.39
A126: 45714 | B126: 2660666.802 | C126: 364100.616 | D126: 233.39
A127: 45715 | B127: 2660856.454 | C127: 364401.433 | D127: 233.39
A128: 45716 | B128: 2660788.717 | C128: 364358.036 | D128: 233.39
A129: 45717 | B129: 2660747.944 | C129: 364356.397 | D129: 233.39
A130: 45718 | B130: 2660583.478 | C130: 364722.221 | D130: 233.39
A131: 45719 | B131: 2660482.801 | C131: 364761.628 | D131: 233.39
A132: 45720 | B132: 2660854.589 | C132: 364397.009 | D132: 233.39
A133: 45721 | B133: 2661023.443 | C133: 364589.551 | D133: 233.39
A134: 45722 | B134: 2660475.051 | C134: 363640.79 | D134: 233.391
A135: 45723 | B135: 2660681.56 | C135: 363815.829 | D135: 233.391
A136: 45724 | B136: 2660701.432 | C136: 363780.447 | D136: 233.391
A137: 45725 | B137: 2660237.817 | C137: 363823.904 | D137: 233.391
A138: 45726 | B138: 2660269.78 | C138: 363660.844 | D138: 233.391
A139: 45727 | B139: 2660312.165 | C139: 363409.544 | D139: 233.391
A140: 45728 | B140: 2660300.36 | C140: 363533.092 | D140: 233.391
A141: 45729 | B141: 2660289.265 | C141: 364391.953 | D141: 233.391
A142: 45730 | B142: 2660684.362 | C142: 364269.036 | D142: 233.391
A143: 45731 | B143: 2660842.963 | C143: 364395.737 | D143: 233.391
A144: 45732 | B144: 2660381.333 | C144: 364511.493 | D144: 233.391
A145: 45733 | B145: 2660898.275 | C145: 364307.91 | D145: 233.391
A146: 45734 | B146: 2660549.603 | C146: 363730.382 | D146: 233.392
A147: 45735 | B147: 2660066.859 | C147: 363704.483 | D147: 233.392
A148: 45736 | B148: 2660092.808 | C148: 363791.711 | D148: 233.392
A149: 45737 | B149: 2660830.914 | C149: 364014.299 | D149: 233.392
A150: 45738 | B150: 2660648.251 | C150: 364041.973 | D150: 233.392
A151: 45739 | B151: 2660719.659 | C151: 364299.759 | D151: 233.392
A152: 45740 | B152: 2660459.353 | C152: 364637.345 | D152: 233.392
A153: 45741 | B153: 2660285.022 | C153: 363905.853 | D153: 233.393
A154: 45742 | B154: 2660229.165 | C154: 363851.935 | D154: 233.393
A155: 45743 | B155: 2660319.32 | C155: 363786.131 | D155: 233.393
A156: 45744 | B156: 2660019.669 | C156: 363776.162 | D156: 233.393
A157: 45745 | B157: 2660160.806 | C157: 363598.267 | D157: 233.393
A158: 45746 | B158: 2660291.195 | C158: 363584.575 | D158: 233.393
A159: 45747 | B159: 2660139.532 | C159: 363857.606 | D159: 233.393
A160: 45748 | B160: 2660430.199 | C160: 363637.515 | D160: 233.393
A161: 45749 | B161: 2660635.605 | C161: 363641.647 | D161: 233.393
A162: 45750 | B162: 2660356.73 | C162: 364379.401 | D162: 233.393
A163: 45751 | B163: 2660564.294 | C163: 364387.034 | D163: 233.393
A164: 45752 | B164: 2660458.035 | C164: 364375.695 | D164: 233.393
A165: 45753 | B165: 2660503.64 | C165: 364553.026 | D165: 233.393
A166: 45754 | B166: 2660573.112 | C166: 364706.269 | D166: 233.393
A167: 45755 | B167: 2660532.892 | C167: 363651.342 | D167: 233.394
A168: 45756 | B168: 2660702.319 | C168: 364303.5 | D168: 233.394
A169: 45757 | B169: 2660676.89 | C169: 364268.275 | D169: 233.394
A170: 45758 | B170: 2660381.865 | C170: 363855.937 | D170: 233.394
A171: 45759 | B171: 2660331.813 | C171: 364311.009 | D171: 233.394
A172: 45760 | B172: 2660240.144 | C172: 364038.661 | D172: 233.394
A173: 45761 | B173: 2660754.218 | C173: 364319.156 | D173: 233.394
A174: 45762 | B174: 2660467.045 | C174: 364490.337 | D174: 233.394
A175: 45763 | B175: 2660725.401 | C175: 364460.725 | D175: 233.394
A176: 45764 | B176: 2660265.74 | C176: 363646.941 | D176: 233.395
A177: 45765 | B177: 2660121.338 | C177: 363626.346 | D177: 233.395
A178: 45766 | B178: 2660230.466 | C178: 363523.141 | D178: 233.395
A179: 45767 | B179: 2660166.699 | C179: 363990.659 | D179: 233.395
A180: 45768 | B180: 2660251.892 | C180: 364273.735 | D180: 233.395
A181: 45769 | B181: 2660632.916 | C181: 364771.711 | D181: 233.395
A182: 45770 | B182: 2660839.004 | C182: 364258.726 | D182: 233.395
A183: 45771 | B183: 2660530.396 | C183: 363672.824 | D183: 233.396
A184: 45772 | B184: 2660119.906 | C184: 363425.222 | D184: 233.396
A185: 45773 | B185: 2660080.144 | C185: 363571.628 | D185: 233.396
A186: 45774 | B186: 2660506.269 | C186: 363573.688 | D186: 233.396
A187: 45775 | B187: 2660379.342 | C187: 363655.434 | D187: 233.396
A188: 45776 | B188: 2660327.34 | C188: 364399.279 | D188: 233.396
A189: 45777 | B189: 2660351.244 | C189: 364235.505 | D189: 233.396
A190: 45778 | B190: 2660442.142 | C190: 364415.969 | D190: 233.396
A191: 45779 | B191: 2660289.813 | C191: 364088.194 | D191: 233.396
A192: 45780 | B192: 2660445.641 | C192: 364570.561 | D192: 233.396
A193: 45781 | B193: 2660468.897 | C193: 364475.095 | D193: 233.396
A194: 45782 | B194: 2660928.224 | C194: 364353.473 | D194: 233.396
A195: 45783 | B195: 2660231.014 | C195: 363857.899 | D195: 233.397
A196: 45784 | B196: 2660312.572 | C196: 363805.938 | D196: 233.397
A197: 45785 | B197: 2660673.697 | C197: 364359.624 | D197: 233.397
A198: 45786 | B198: 2660421.95 | C198: 363631.762 | D198: 233.397
A199: 45787 | B199: 2660396.496 | C199: 364382.737 | D199: 233.397
A200: 45788 | B200: 2660810.428 | C200: 364311.761 | D200: 233.397
... 4300 more rows

Sheet 2
A1: Num | B1: N | C1: E | D1: Z | F1: Num2 | G1: N2 | H1: E2 | I1: Z2 | J1: تطابق | K1: تكرار
A2: 1 | B2: 2660830.226 | C2: 364517.258 | D2: 231.838 | F2: =getClosestID(B2,C2,D2) -> 45637 | G2: =VLOOKUP($F2,'1'!$A:B,2,FALSE) -> 2660915.822 | H2: =VLOOKUP($F2,'1'!$A:C,3,FALSE) -> 364501.053 | I2: =VLOOKUP($F2,'1'!$A:D,4,FALSE) -> 233.385 | J2: =getAvgPer(B2,C2,D2,G2,H2,I2) -> 0.9977649479 | K2: =COUNTIF(F:F,F2) -> 3
A3: 2 | B3: 2660866.928 | C3: 364556.457 | D3: 232.768 | F3: =getClosestID(B3,C3,D3) -> 45683 | G3: =VLOOKUP($F3,'1'!$A:B,2,FALSE) -> 2661001.095 | H3: =VLOOKUP($F3,'1'!$A:C,3,FALSE) -> 364562.911 | I3: =VLOOKUP($F3,'1'!$A:D,4,FALSE) -> 233.387 | J3: 0.9990932099 | K3: 2
A4: 3 | B4: 2660544.08 | C4: 364695.7 | D4: 232.951 | F4: 45591 | G4: =VLOOKUP($F4,'1'!$A:B,2,FALSE) -> 2660626.717 | H4: =VLOOKUP($F4,'1'!$A:C,3,FALSE) -> 364702.289 | I4: =VLOOKUP($F4,'1'!$A:D,4,FALSE) -> 233.382 | J4: 0.9993680388 | K4: 1
A5: 4 | B5: 2660262.202 | C5: 363497.949 | D5: 235.473 | F5: 63772 | G5: =VLOOKUP($F5,'1'!$A:B,2,FALSE) -> 2660260.146 | H5: =VLOOKUP($F5,'1'!$A:C,3,FALSE) -> 363519.482 | I5: =VLOOKUP($F5,'1'!$A:D,4,FALSE) -> 235.471 | J5: 0.9999771663 | K5: 1
A6: 5 | B6: 2660320.128 | C6: 363474.28 | D6: 236.155 | F6: 68088 | G6: =VLOOKUP($F6,'1'!$A:B,2,FALSE) -> 2660319.222 | H6: =VLOOKUP($F6,'1'!$A:C,3,FALSE) -> 363478.311 | I6: =VLOOKUP($F6,'1'!$A:D,4,FALSE) -> 236.176 | J6: 0.9999665509 | K6: 1
A7: 6 | B7: 2660410.933 | C7: 364236.583 | D7: 236.886 | F7: 71787 | G7: =VLOOKUP($F7,'1'!$A:B,2,FALSE) -> 2660421.862 | H7: =VLOOKUP($F7,'1'!$A:C,3,FALSE) -> 364240.553 | I7: =VLOOKUP($F7,'1'!$A:D,4,FALSE) -> 236.875 | J7: 0.9999795189 | K7: =COUNTIF(F:F,F7) -> 1
A8: 7 | B8: 2660164.953 | C8: 363681.775 | D8: 238.523 | F8: 79775 | G8: =VLOOKUP($F8,'1'!$A:B,2,FALSE) -> 2660418.393 | H8: =VLOOKUP($F8,'1'!$A:C,3,FALSE) -> 363741.678 | I8: =VLOOKUP($F8,'1'!$A:D,4,FALSE) -> 238.57 | J8: 0.9998476814 | K8: 1
A9: 8 | B9: 2660804.153 | C9: 364516.343 | D9: 226.542 | F9: 45637 | G9: =VLOOKUP($F9,'1'!$A:B,2,FALSE) -> 2660915.822 | H9: =VLOOKUP($F9,'1'!$A:C,3,FALSE) -> 364501.053 | I9: =VLOOKUP($F9,'1'!$A:D,4,FALSE) -> 233.385 | J9: 0.9901984791 | K9: 3
A10: 9 | B10: 2660853.717 | C10: 364572.985 | D10: 226.923 | F10: 45683 | G10: =VLOOKUP($F10,'1'!$A:B,2,FALSE) -> 2661001.095 | H10: =VLOOKUP($F10,'1'!$A:C,3,FALSE) -> 364562.911 | I10: =VLOOKUP($F10,'1'!$A:D,4,FALSE) -> 233.387 | J10: 0.9907401654 | K10: 2
A11: 10 | B11: 2660446.127 | C11: 364644.434 | D11: 227.924 | F11: 45740 | G11: =VLOOKUP($F11,'1'!$A:B,2,FALSE) -> 2660459.353 | H11: =VLOOKUP($F11,'1'!$A:C,3,FALSE) -> 364637.345 | I11: =VLOOKUP($F11,'1'!$A:D,4,FALSE) -> 233.392 | J11: 0.9921823976 | K11: 2
A12: 11 | B12: 2660843.786 | C12: 364526.975 | D12: 227.943 | F12: 45637 | G12: =VLOOKUP($F12,'1'!$A:B,2,FALSE) -> 2660915.822 | H12: =VLOOKUP($F12,'1'!$A:C,3,FALSE) -> 364501.053 | I12: =VLOOKUP($F12,'1'!$A:D,4,FALSE) -> 233.385 | J12: 0.9921947076 | K12: 3
A13: 12 | B13: 2660482.58 | C13: 364660.646 | D13: 228.863 | F13: 45695 | G13: =VLOOKUP($F13,'1'!$A:B,2,FALSE) -> 2660525.396 | H13: =VLOOKUP($F13,'1'!$A:C,3,FALSE) -> 364658.115 | I13: =VLOOKUP($F13,'1'!$A:D,4,FALSE) -> 233.388 | J13: 0.9935295505 | K13: 2
A14: 13 | B14: 2660828.437 | C14: 364608.341 | D14: 229.145 | F14: 45611 | G14: =VLOOKUP($F14,'1'!$A:B,2,FALSE) -> 2661020.174 | H14: =VLOOKUP($F14,'1'!$A:C,3,FALSE) -> 364587.842 | I14: =VLOOKUP($F14,'1'!$A:D,4,FALSE) -> 233.384 | J14: 0.9939028417 | K14: 3
A15: 14 | B15: 2660782.364 | C15: 364539.007 | D15: 229.385 | F15: 45590 | G15: =VLOOKUP($F15,'1'!$A:B,2,FALSE) -> 2660469.245 | H15: =VLOOKUP($F15,'1'!$A:C,3,FALSE) -> 364525.912 | I15: =VLOOKUP($F15,'1'!$A:D,4,FALSE) -> 233.382 | J15: 0.9942399902 | K15: 1
A16: 15 | B16: 2660842.717 | C16: 364576.449 | D16: 229.935 | F16: 45611 | G16: =VLOOKUP($F16,'1'!$A:B,2,FALSE) -> 2661020.174 | H16: =VLOOKUP($F16,'1'!$A:C,3,FALSE) -> 364587.842 | I16: =VLOOKUP($F16,'1'!$A:D,4,FALSE) -> 233.384 | J16: 0.9950412813 | K16: 3
A17: 16 | B17: 2660777.771 | C17: 364584.244 | D17: 230.039 | F17: 45611 | G17: =VLOOKUP($F17,'1'!$A:B,2,FALSE) -> 2661020.174 | H17: =VLOOKUP($F17,'1'!$A:C,3,FALSE) -> 364587.842 | I17: =VLOOKUP($F17,'1'!$A:D,4,FALSE) -> 233.384 | J17: 0.9951888117 | K17: 3
A18: 17 | B18: 2660419.357 | C18: 364314.179 | D18: 230.649 | F18: 45636 | G18: =VLOOKUP($F18,'1'!$A:B,2,FALSE) -> 2660296.9 | H18: =VLOOKUP($F18,'1'!$A:C,3,FALSE) -> 364314.819 | I18: =VLOOKUP($F18,'1'!$A:D,4,FALSE) -> 233.385 | J18: 0.9960763652 | K18: 1
A19: 18 | B19: 2660806.746 | C19: 364624.097 | D19: 231.075 | F19: 45642 | G19: =VLOOKUP($F19,'1'!$A:B,2,FALSE) -> 2660542.281 | H19: =VLOOKUP($F19,'1'!$A:C,3,FALSE) -> 364618.093 | I19: =VLOOKUP($F19,'1'!$A:D,4,FALSE) -> 233.385 | J19: 0.9966621109 | K19: 3
A20: 19 | B20: 2660818.924 | C20: 364610.244 | D20: 231.039 | F20: 45642 | G20: =VLOOKUP($F20,'1'!$A:B,2,FALSE) -> 2660542.281 | H20: =VLOOKUP($F20,'1'!$A:C,3,FALSE) -> 364618.093 | I20: =VLOOKUP($F20,'1'!$A:D,4,FALSE) -> 233.385 | J20: 0.9966074814 | K20: 3
A21: 20 | B21: 2660326.591 | C21: 364143.548 | D21: 231.356 | F21: 45676 | G21: =VLOOKUP($F21,'1'!$A:B,2,FALSE) -> 2660206.631 | H21: =VLOOKUP($F21,'1'!$A:C,3,FALSE) -> 364161.075 | I21: =VLOOKUP($F21,'1'!$A:D,4,FALSE) -> 233.387 | J21: 0.9970681646 | K21: 1
A22: 21 | B22: 2660492.128 | C22: 364637.491 | D22: 231.406 | F22: 45740 | G22: =VLOOKUP($F22,'1'!$A:B,2,FALSE) -> 2660459.353 | H22: =VLOOKUP($F22,'1'!$A:C,3,FALSE) -> 364637.345 | I22: =VLOOKUP($F22,'1'!$A:D,4,FALSE) -> 233.392 | J22: 0.9971593305 | K22: 2
A23: 22 | B23: 2660375.469 | C23: 364279.786 | D23: 231.779 | F23: 45615 | G23: =VLOOKUP($F23,'1'!$A:B,2,FALSE) -> 2660362.912 | H23: =VLOOKUP($F23,'1'!$A:C,3,FALSE) -> 364284.345 | I23: =VLOOKUP($F23,'1'!$A:D,4,FALSE) -> 233.384 | J23: 0.9977018956 | K23: 1
A24: 23 | B24: 2660800.345 | C24: 364612.128 | D24: 231.858 | F24: 45642 | G24: =VLOOKUP($F24,'1'!$A:B,2,FALSE) -> 2660542.281 | H24: =VLOOKUP($F24,'1'!$A:C,3,FALSE) -> 364618.093 | I24: =VLOOKUP($F24,'1'!$A:D,4,FALSE) -> 233.385 | J24: 0.997781272 | K24: 3
A25: 24 | B25: 2660201.741 | C25: 363680.488 | D25: 232.459 | F25: 45726 | G25: =VLOOKUP($F25,'1'!$A:B,2,FALSE) -> 2660269.78 | H25: =VLOOKUP($F25,'1'!$A:C,3,FALSE) -> 363660.844 | I25: =VLOOKUP($F25,'1'!$A:D,4,FALSE) -> 233.391 | J25: 0.9986423703 | K25: 2
A26: 25 | B26: 2660425.689 | C26: 364275.766 | D26: 233.588 | F26: 47903 | G26: =VLOOKUP($F26,'1'!$A:B,2,FALSE) -> 2660419.918 | H26: =VLOOKUP($F26,'1'!$A:C,3,FALSE) -> 364279.186 | I26: =VLOOKUP($F26,'1'!$A:D,4,FALSE) -> 233.588 | J26: 0.9999961475 | K26: 1
A27: 26 | B27: 2660300.718 | C27: 364133.375 | D27: 233.669 | F27: 48686 | G27: =VLOOKUP($F27,'1'!$A:B,2,FALSE) -> 2660238.396 | H27: =VLOOKUP($F27,'1'!$A:C,3,FALSE) -> 364132.721 | I27: =VLOOKUP($F27,'1'!$A:D,4,FALSE) -> 233.661 | J27: 0.9999801803 | K27: 1
A28: 27 | B28: 2660575.194 | C28: 364683.889 | D28: 233.871 | F28: 50761 | G28: =VLOOKUP($F28,'1'!$A:B,2,FALSE) -> 2660643.191 | H28: =VLOOKUP($F28,'1'!$A:C,3,FALSE) -> 364682.976 | I28: =VLOOKUP($F28,'1'!$A:D,4,FALSE) -> 233.867 | J28: 0.9999849455 | K28: 1
A29: 28 | B29: 2660272.078 | C29: 363475.728 | D29: 234.022 | F29: 52253 | G29: =VLOOKUP($F29,'1'!$A:B,2,FALSE) -> 2660249.259 | H29: =VLOOKUP($F29,'1'!$A:C,3,FALSE) -> 363487.484 | I29: =VLOOKUP($F29,'1'!$A:D,4,FALSE) -> 234.03 | J29: 0.9999749655 | K29: 1
A30: 29 | B30: 2660425.339 | C30: 364257.544 | D30: 234.592 | F30: 57057 | G30: =VLOOKUP($F30,'1'!$A:B,2,FALSE) -> 2660504.04 | H30: =VLOOKUP($F30,'1'!$A:C,3,FALSE) -> 364272.786 | I30: =VLOOKUP($F30,'1'!$A:D,4,FALSE) -> 234.592 | J30: 0.9999761922 | K30: 1
A31: 30 | B31: 2660282.801 | C31: 364115.977 | D31: 234.694 | F31: 57931 | G31: =VLOOKUP($F31,'1'!$A:B,2,FALSE) -> 2660270.514 | H31: =VLOOKUP($F31,'1'!$A:C,3,FALSE) -> 364113.106 | I31: =VLOOKUP($F31,'1'!$A:D,4,FALSE) -> 234.698 | J31: 0.9999901511 | K31: 1
A32: 31 | B32: 2660504.128 | C32: 364642.206 | D32: 234.809 | F32: 58846 | G32: =VLOOKUP($F32,'1'!$A:B,2,FALSE) -> 2660573.314 | H32: =VLOOKUP($F32,'1'!$A:C,3,FALSE) -> 364645.223 | I32: =VLOOKUP($F32,'1'!$A:D,4,FALSE) -> 234.808 | J32: 0.9999871544 | K32: 1
A33: 32 | B33: 2660559.41 | C33: 364689.565 | D33: 235.053 | F33: 60729 | G33: =VLOOKUP($F33,'1'!$A:B,2,FALSE) -> 2660555.865 | H33: =VLOOKUP($F33,'1'!$A:C,3,FALSE) -> 364679.678 | I33: =VLOOKUP($F33,'1'!$A:D,4,FALSE) -> 235.037 | J33: 0.999967829 | K33: 1
A34: 33 | B34: 2660567.507 | C34: 364690.788 | D34: 235.535 | F34: 64256 | G34: =VLOOKUP($F34,'1'!$A:B,2,FALSE) -> 2660588.43 | H34: =VLOOKUP($F34,'1'!$A:C,3,FALSE) -> 364702.724 | I34: =VLOOKUP($F34,'1'!$A:D,4,FALSE) -> 235.539 | J34: =getAvgPer(B34,C34,D34,G34,H34,I34) -> 0.9999808085 | K34: 1
A35: 34 | B35: 2660534.09 | C35: 364671.043 | D35: 235.559 | F35: 64339 | G35: =VLOOKUP($F35,'1'!$A:B,2,FALSE) -> 2660562.781 | H35: =VLOOKUP($F35,'1'!$A:C,3,FALSE) -> 364685.664 | I35: =VLOOKUP($F35,'1'!$A:D,4,FALSE) -> 235.557 | J35: 0.9999802112 | K35: 1
A36: 35 | B36: 2660186.442 | C36: 363696.395 | D36: 235.582 | F36: 64521 | G36: =VLOOKUP($F36,'1'!$A:B,2,FALSE) -> 2660279.232 | H36: =VLOOKUP($F36,'1'!$A:C,3,FALSE) -> 363693.071 | I36: =VLOOKUP($F36,'1'!$A:D,4,FALSE) -> 235.588 | J36: 0.9999768375 | K36: 1
A37: 36 | B37: 2660632.261 | C37: 364247.521 | D37: 235.718 | F37: 65410 | G37: =VLOOKUP($F37,'1'!$A:B,2,FALSE) -> 2660607.005 | H37: =VLOOKUP($F37,'1'!$A:C,3,FALSE) -> 364245.173 | I37: =VLOOKUP($F37,'1'!$A:D,4,FALSE) -> 235.718 | J37: 0.9999946871 | K37: 1
A38: 37 | B38: 2660142.582 | C38: 363662.794 | D38: 235.785 | F38: 65833 | G38: =VLOOKUP($F38,'1'!$A:B,2,FALSE) -> 2660177.594 | H38: =VLOOKUP($F38,'1'!$A:C,3,FALSE) -> 363681.093 | I38: =VLOOKUP($F38,'1'!$A:D,4,FALSE) -> 235.788 | J38: 0.9999745997 | K38: 1
A39: 38 | B39: 2660396.407 | C39: 364266.519 | D39: 236.141 | F39: 67931 | G39: =VLOOKUP($F39,'1'!$A:B,2,FALSE) -> 2660216.71 | H39: =VLOOKUP($F39,'1'!$A:C,3,FALSE) -> 364263.501 | I39: =VLOOKUP($F39,'1'!$A:D,4,FALSE) -> 236.147 | J39: 0.9999662539 | K39: 1
A40: 39 | B40: 2660310.245 | C40: 364090.313 | D40: 236.283 | F40: 68660 | G40: =VLOOKUP($F40,'1'!$A:B,2,FALSE) -> 2660349.64 | H40: =VLOOKUP($F40,'1'!$A:C,3,FALSE) -> 364082.351 | I40: =VLOOKUP($F40,'1'!$A:D,4,FALSE) -> 236.273 | J40: 0.9999736672 | K40: 1
A41: 40 | B41: 2660283.848 | C41: 364136.076 | D41: 236.44 | F41: 69582 | G41: =VLOOKUP($F41,'1'!$A:B,2,FALSE) -> 2660283.502 | H41: =VLOOKUP($F41,'1'!$A:C,3,FALSE) -> 364134.577 | I41: =VLOOKUP($F41,'1'!$A:D,4,FALSE) -> 236.445 | J41: 0.9999915356 | K41: 1
A42: 41 | B42: 2660409.318 | C42: 364230.486 | D42: 237.952 | F42: 77111 | G42: =VLOOKUP($F42,'1'!$A:B,2,FALSE) -> 2660465.199 | H42: =VLOOKUP($F42,'1'!$A:C,3,FALSE) -> 364223.827 | I42: =VLOOKUP($F42,'1'!$A:D,4,FALSE) -> 237.937 | J42: 0.9999658918 | K42: 1
A43: 42 | B43: 2660445.902 | C43: 363984.817 | D43: 238.142 | F43: 77945 | G43: =VLOOKUP($F43,'1'!$A:B,2,FALSE) -> 2660456.755 | H43: =VLOOKUP($F43,'1'!$A:C,3,FALSE) -> 363987.962 | I43: =VLOOKUP($F43,'1'!$A:D,4,FALSE) -> 238.128 | J43: 0.9999761639 | K43: 1
A44: 43 | B44: 2660685.706 | C44: 364190.148 | D44: 238.711 | F44: 79777 | G44: =VLOOKUP($F44,'1'!$A:B,2,FALSE) -> 2660340.215 | H44: =VLOOKUP($F44,'1'!$A:C,3,FALSE) -> 364020.254 | I44: =VLOOKUP($F44,'1'!$A:D,4,FALSE) -> 238.57 | J44: 0.9996043264 | K44: 13
A45: 44 | B45: 2660427.66 | C45: 363956.516 | D45: 239.025 | F45: 79777 | G45: =VLOOKUP($F45,'1'!$A:B,2,FALSE) -> 2660340.215 | H45: =VLOOKUP($F45,'1'!$A:C,3,FALSE) -> 364020.254 | I45: =VLOOKUP($F45,'1'!$A:D,4,FALSE) -> 238.57 | J45: 0.9992961567 | K45: 13
A46: 45 | B46: 2660410.658 | C46: 363977.119 | D46: 239.334 | F46: 79777 | G46: =VLOOKUP($F46,'1'!$A:B,2,FALSE) -> 2660340.215 | H46: =VLOOKUP($F46,'1'!$A:C,3,FALSE) -> 364020.254 | I46: =VLOOKUP($F46,'1'!$A:D,4,FALSE) -> 238.57 | J46: 0.9988876113 | K46: 13
A47: 46 | B47: 2660640.356 | C47: 364219.958 | D47: 239.594 | F47: 79272 | G47: =VLOOKUP($F47,'1'!$A:B,2,FALSE) -> 2660625.839 | H47: =VLOOKUP($F47,'1'!$A:C,3,FALSE) -> 364226.061 | I47: =VLOOKUP($F47,'1'!$A:D,4,FALSE) -> 238.433 | J47: 0.9983773635 | K47: 1
A48: 47 | B48: 2660340.335 | C48: 363472.137 | D48: 239.772 | F48: 79265 | G48: =VLOOKUP($F48,'1'!$A:B,2,FALSE) -> 2660424.524 | H48: =VLOOKUP($F48,'1'!$A:C,3,FALSE) -> 363498.717 | I48: =VLOOKUP($F48,'1'!$A:D,4,FALSE) -> 238.43 | J48: 0.9980994162 | K48: 1
A49: 48 | B49: 2660331.921 | C49: 364114.628 | D49: 240.5 | F49: 79777 | G49: =VLOOKUP($F49,'1'!$A:B,2,FALSE) -> 2660340.215 | H49: =VLOOKUP($F49,'1'!$A:C,3,FALSE) -> 364020.254 | I49: =VLOOKUP($F49,'1'!$A:D,4,FALSE) -> 238.57 | J49: 0.9972375822 | K49: 13
A50: 49 | B50: 2660336.48 | C50: 364119.213 | D50: 240.776 | F50: 79777 | G50: =VLOOKUP($F50,'1'!$A:B,2,FALSE) -> 2660340.215 | H50: =VLOOKUP($F50,'1'!$A:C,3,FALSE) -> 364020.254 | I50: =VLOOKUP($F50,'1'!$A:D,4,FALSE) -> 238.57 | J50: 0.9968549256 | K50: 13
A51: 50 | B51: 2660580.986 | C51: 364199.944 | D51: 241.483 | F51: 79777 | G51: =VLOOKUP($F51,'1'!$A:B,2,FALSE) -> 2660340.215 | H51: =VLOOKUP($F51,'1'!$A:C,3,FALSE) -> 364020.254 | I51: =VLOOKUP($F51,'1'!$A:D,4,FALSE) -> 238.57 | J51: 0.9957843869 | K51: 13
A52: 51 | B52: 2660439.108 | C52: 363998.313 | D52: 241.903 | F52: 79777 | G52: =VLOOKUP($F52,'1'!$A:B,2,FALSE) -> 2660340.215 | H52: =VLOOKUP($F52,'1'!$A:C,3,FALSE) -> 364020.254 | I52: =VLOOKUP($F52,'1'!$A:D,4,FALSE) -> 238.57 | J52: 0.9953747681 | K52: 13
A53: 52 | B53: 2660672.321 | C53: 364200.125 | D53: 242.698 | F53: 79777 | G53: =VLOOKUP($F53,'1'!$A:B,2,FALSE) -> 2660340.215 | H53: =VLOOKUP($F53,'1'!$A:C,3,FALSE) -> 364020.254 | I53: =VLOOKUP($F53,'1'!$A:D,4,FALSE) -> 238.57 | J53: 0.9941241691 | K53: 13
A54: 53 | B54: 2660417.494 | C54: 363965.49 | D54: 243.318 | F54: 79777 | G54: =VLOOKUP($F54,'1'!$A:B,2,FALSE) -> 2660340.215 | H54: =VLOOKUP($F54,'1'!$A:C,3,FALSE) -> 364020.254 | I54: =VLOOKUP($F54,'1'!$A:D,4,FALSE) -> 238.57 | J54: 0.9934356506 | K54: 13
A55: 54 | B55: 2660606.385 | C55: 364174.187 | D55: 243.842 | F55: 79777 | G55: =VLOOKUP($F55,'1'!$A:B,2,FALSE) -> 2660340.215 | H55: =VLOOKUP($F55,'1'!$A:C,3,FALSE) -> 364020.254 | I55: =VLOOKUP($F55,'1'!$A:D,4,FALSE) -> 238.57 | J55: 0.9926189036 | K55: 13
A56: 55 | B56: 2660645.442 | C56: 364182.718 | D56: 246.779 | F56: 79777 | G56: =VLOOKUP($F56,'1'!$A:B,2,FALSE) -> 2660340.215 | H56: =VLOOKUP($F56,'1'!$A:C,3,FALSE) -> 364020.254 | I56: =VLOOKUP($F56,'1'!$A:D,4,FALSE) -> 238.57 | J56: 0.9887248647 | K56: 13
A57: 56 | B57: 2660663.311 | C57: 364202.619 | D57: 246.874 | F57: 79777 | G57: =VLOOKUP($F57,'1'!$A:B,2,FALSE) -> 2660340.215 | H57: =VLOOKUP($F57,'1'!$A:C,3,FALSE) -> 364020.254 | I57: =VLOOKUP($F57,'1'!$A:D,4,FALSE) -> 238.57 | J57: 0.9885804166 | K57: 13
A58: 57 | B58: 2660661.388 | C58: 364195.898 | D58: 247.499 | F58: 79777 | G58: =VLOOKUP($F58,'1'!$A:B,2,FALSE) -> 2660340.215 | H58: =VLOOKUP($F58,'1'!$A:C,3,FALSE) -> 364020.254 | I58: =VLOOKUP($F58,'1'!$A:D,4,FALSE) -> 238.57 | J58: 0.9877733653 | K58: 13
A59: 58 | B59: 2660482.85 | C59: 364646.56 | D59: 228.718 | F59: 45695 | G59: =VLOOKUP($F59,'1'!$A:B,2,FALSE) -> 2660525.396 | H59: =VLOOKUP($F59,'1'!$A:C,3,FALSE) -> 364658.115 | I59: =VLOOKUP($F59,'1'!$A:D,4,FALSE) -> 233.388 | J59: 0.9933142412 | K59: 2
A60: 59 | B60: 2660507.974 | C60: 364663.556 | D60: 235.775 | F60: 65799 | G60: =VLOOKUP($F60,'1'!$A:B,2,FALSE) -> 2660522.741 | H60: =VLOOKUP($F60,'1'!$A:C,3,FALSE) -> 364665.186 | I60: =VLOOKUP($F60,'1'!$A:D,4,FALSE) -> 235.781 | J60: 0.9999881775 | K60: 1
A61: 60 | B61: 2660184.376 | C61: 363652.113 | D61: 229.749 | F61: 45726 | G61: =VLOOKUP($F61,'1'!$A:B,2,FALSE) -> 2660269.78 | H61: =VLOOKUP($F61,'1'!$A:C,3,FALSE) -> 363660.844 | I61: =VLOOKUP($F61,'1'!$A:D,4,FALSE) -> 233.391 | J61: 0.9947797243 | K61: 2

Sheet Sheet1
